Cogmind - Beta 12 @@@ ROGUE MODE // 2024.01.12 @ 14:25:42 Player: Dosh Result: Destroyed by as-19197 with Assembled Blade Performance ------------- Evolutions (0) 0 Regions Visited (2) 400 Robots Destroyed (33) 165 Value Destroyed (703) 703 Prototype IDs (1) 20 Alien Tech Used (0) 0 Bonus (-159) -159 TOTAL SCORE: 1129 Bonus ------- Friendly Fire -159 Cogmind --------- Core Integrity 0/250 Matter 114/300 Energy 103/125 System Corruption 0% Temperature Cool (0) Movement Rolling (80) Location -10/Mines Parts ------- > --- POWER (1) -------- Light Ion Engine > --- PROPULSION (2) --- Wheel Wheel > --- UTILITY (2) ------ Medium Storage Unit > --- WEAPON (2) ------- (None) > --- INVENTORY (10) --- Light Ion Engine Heavy Ion Engine Small Storage Unit Huge Storage Unit Hacking Suite Peak State ------------ > --- POWER ------------ Heavy Ion Engine > --- PROPULSION ------- Light Treads Light Treads > --- UTILITY ---------- Improved Heat Sink Medium Storage Unit > --- WEAPON ----------- Light Cannon Rocket Launcher > --- INVENTORY -------- Light Ion Engine Heavy Ion Engine Wheel Small Storage Unit Huge Storage Unit Hacking Suite Light Assault Rifle Rocket Launcher [Rating: 13] Favorites ----------- Power Heavy Ion Engine Engine Heavy Ion Engine Propulsion Light Treads Treads Light Treads Wheel Wheel Utility Medium Storage Unit Device Improved Heat Sink Storage Medium Storage Unit Protection Propulsion Shielding Weapon Light Assault Rifle Ballistic Gun Light Assault Rifle Ballistic Cannon Light Cannon Launcher Rocket Launcher Build | -11 -10 -10 ------- Run | Jun Mat Min Slots Evolved . | . . . Power . | . . . Propulsion . | . . . Utility . | . . . Weapon . | . . . Parts Attached 30 | 5 10 15 Power 4 | 1 1 2 Engine 4 | 1 1 2 Core . | . . . Reactor . | . . . Propulsion 7 | 2 2 3 Treads 4 | 2 2 . Leg . | . . . Wheel 3 | . . 3 Hover . | . . . Flight . | . . . Utility 4 | 1 2 1 Device 1 | . . 1 Storage 2 | 1 1 . Processor . | . . . Hackware . | . . . Protection 1 | . 1 . Artifact . | . . . Weapon 15 | 1 5 9 Energy Gun . | . . . Energy Cannon . | . . . Ballistic Gun 7 | 1 1 5 Ballistic Cannon 3 | . 3 . Launcher 5 | . 1 4 Special Weapon . | . . . Impact Weapon . | . . . Slashing Weapon . | . . . Piercing Weapon . | . . . Special Melee Weapon . | . . . Unidentified Prototypes 1 | . 1 . Parts Lost 12 | . . 12 Power 1 | . . 1 Propulsion 3 | . . 3 Utility 2 | . . 2 Weapon 6 | . . 6 Highest Loss Streak 6 | . . 6 To Critical Strikes 1 | . . 1 Average Slot Usage (%) 87 | . 90 73 Engine 13 | . 14 13 Treads 25 | . 27 16 Storage 14 | . 14 14 Protection 4 | . 5 . Ballistic Gun 14 | . 13 15 Ballistic Cannon 12 | . 13 5 Naked Turns . | . . . Heaviest Build 26 | 11 23 26 Greatest Support 40 | 40 40 40 Greatest Overweight (x) 4 | . . 4 Average Overweight (x) . | . . . Largest Inventory Capacity 10 | 8 10 10 Average Capacity 9 | 7 8 10 Most Carried 10 | 2 9 10 Average Carried 6 | . 6 7 Final Capacity 10 | 8 10 10 Final Carried 8 | 2 8 5 Class Distribution -------------------- 100% | Mutant Dominant Class ---------------- Mutant | -10/Materials Mutant | -10/Mines Resources | -11 -10 -10 ----------- Run | Jun Mat Min Matter Collected 775 | 250 402 123 Remotely . | . . . Salvage Created 733 | 1 571 161 Parts 62 | 1 57 4 Haulers Intercepted 1 | . 1 . Recyclers Shooed 1 | . 1 . Parts Field Recycled . | . . . Retrieved Matter . | . . . Parts Self-Destructed . | . . . Prevented . | . . . Kills | -11 -10 -10 ------- Run | Jun Mat Min Combat Hostiles Destroyed 35 | . 19 16 Guns 9 | . 4 5 Cannons 13 | . 12 1 AOE 13 | . 3 10 Classes Destroyed 10 | 1 6 3 Worker 3 | . 3 . Builder 1 | . . 1 Tunneler 1 | 1 . . Hauler 1 | . 1 . Operator 3 | . 3 . Watcher 2 | . 2 . Swarmer 6 | . 6 . Grunt 15 | . 13 2 Assembled 14 | . . 14 Guerrilla 1 | . . 1 Best Kill Streak 7 | 1 4 7 Combat Bots Only 7 | . 3 7 Max Kills in Single Turn 3 | 1 3 3 Gunslinging . | . . . Exploded 3 | . 2 3 Melee . | . . . Uniques/NPCs Destroyed . | . . . Combat | -11 -10 -10 -------- Run | Jun Mat Min Damage Taken 1694 | . 500 1194 Core 268 | . 36 232 Absorbed by Shields . | . . . Redirected to Shielding 53 | . 33 20 Regen/Repaired (Parts) 202 | . 202 . Core Remaining (%) 100 | 100 . . Volleys Fired 124 | . 62 62 Largest 2 | . 2 2 Hottest 68 | . 55 68 Shots Fired 222 | . 122 100 Gun 139 | . 60 79 Cannon 73 | . 60 13 Launcher 10 | . 2 8 Special . | . . . Kinetic 212 | . 120 92 Thermal . | . . . Explosive 10 | . 2 8 Electromagnetic . | . . . Robot Hit Streak 10 | . 10 9 Robot Miss Streak 4 | . 4 3 Penetration Max . | . . . Secondary Targets 1 | . . 1 Max Gunslinging Chain 1 | . . 1 Shots Hit Robots 145 | . 85 60 Core Hits 83 | . 47 36 Critical Kills . | . . . Critical Parts Destroyed . | . . . Critical Strikes 5 | . 3 2 Blast 5 | . 3 2 Melee Attacks . | . . . Impact . | . . . Slashing . | . . . Piercing . | . . . Sneak Attacks . | . . . Combat Hostiles . | . . . Follow-up Attacks . | . . . Damage Inflicted 2729 | 8 1413 1308 Guns 752 | . 339 413 Cannons 924 | . 819 105 Explosions 997 | . 207 790 Melee . | . . . Ramming 56 | 8 48 . Kinetic 1676 | . 1158 518 Thermal . | . . . Explosive 997 | . 207 790 Electromagnetic . | . . . Impact . | . . . Slashing . | . . . Piercing . | . . . Highest Corruption . | . . . Average Corruption . | . . . Corruption Purged . | . . . Corruption Blocked . | . . . Overload Shots . | . . . Overflow Damage 120 | . . 120 Projectiles . | . . . Explosions 120 | . . 120 Melee . | . . . Knockbacks 12 | . 11 1 Impact 1 | . 1 . Kinetic 10 | . 9 1 Secondary 1 | . 1 . Self-Inflicted Damage 280 | . . 280 Shots 8 | . . 8 Rammed 10 | . 10 . Targets Rammed 12 | 1 11 . Kicked . | . . . Crushed 2 | 1 1 . Highest Temperature 144 | . 95 144 Average Temperature 32 | . 24 55 Received Heat Transfer 456 | . 216 240 Siege Activations . | . . . Robots Corrupted . | . . . Combat Hostiles . | . . . Parts Fried . | . . . Impact Corruptions . | . . . Robots Melted . | . . . Combat Hostiles . | . . . Parts Melted . | . . . Heat Transferred . | . . . Parts Sabotaged . | . . . Parts Stolen . | . . . Parts Stripped . | . . . Power Chain Reactions . | . . . Missiles Intercepted . | . . . Alert | -11 -10 -10 ------- Run | Jun Mat Min Peak Influence 226 | 5 226 168 Initial 87 | . 3 87 Average 94 | 1 93 133 Maximum Alert Level 1 | . 1 . Low Security (%) 98 | 100 98 100 Level 1 1 | . 1 . Level 2 . | . . . Level 3 . | . . . Level 4 . | . . . Level 5 . | . . . High Security . | . . . Max Security . | . . . Squads Dispatched 6 | . 6 . Investigation 3 | . 3 . Extermination . | . . . Reinforcement 3 | . 3 . Assault . | . . . Garrison . | . . . Intercept . | . . . Searches Triggered . | . . . Construction Impeded . | . . . Haulers Reinforced . | . . . Active Scanning Responses . | . . . Cargo Convoy Interrupts . | . . . Stealth | -11 -10 -10 --------- Run | Jun Mat Min Distress Signals 1 | . 1 . Communications Jammed . | . . . Distress Signals . | . . . Times Spotted 51 | . 30 21 Peak Tracking Total 9 | . 3 9 Tactical Retreats 2 | . 1 1 Traps | -11 -10 -10 ------- Run | Jun Mat Min Traps Triggered . | . . . Indirectly . | . . . Trap Hack Attempts . | . . . Triggered . | . . . Disarmed . | . . . Reprogrammed . | . . . Reused . | . . . Traps Extracted . | . . . Installed . | . . . Triggered . | . . . Machines | -11 -10 -10 ---------- Run | Jun Mat Min Machines Disabled 1 | . . 1 Max in Single Turn 1 | . . 1 Machines Repaired . | . . . Machines Sabotaged . | . . . Overloaded Fab Kills . | . . . Hacking | -11 -10 -10 --------- Run | Jun Mat Min Machines Accessed 8 | . 8 . Terminals 5 | . 5 . Fabricators . | . . . Repair Stations 1 | . 1 . Recycling Units 2 | . 2 . Scanalyzers . | . . . Garrison Access . | . . . Total Hacks 29 | . 29 . Successful 15 | . 15 . Failed 14 | . 14 . Catastrophic . | . . . Database Lockouts . | . . . Manual 18 | . 18 . Terminals 20 | . 20 . Fabricators . | . . . Repair Stations 7 | . 7 . Recycling Units 2 | . 2 . Scanalyzers . | . . . Garrison Access . | . . . Terminal Hacks 5 | . 5 . Robot Analysis 5 | . 5 . Fabricator Hacks . | . . . Repair Station Hacks 6 | . 6 . Scan Component 3 | . 3 . Repair 3 | . 3 . Recycling Unit Hacks . | . . . Scanalyzer . | . . . Garrison Access Hacks . | . . . Unauthorized Hacks 4 | . 4 . Terminals 2 | . 2 . Botnet 2 | . 2 . Fabricators . | . . . Repair Stations . | . . . Recycling Units 2 | . 2 . Tunnel 2 | . 2 . Scanalyzers . | . . . Garrison Access . | . . . Data Cores Recovered . | . . . Used . | . . . Hacking Detections 5 | . 5 . Full Trace Events 2 | . 2 . Feedback Events . | . . . Feedback Blocked . | . . . Robot Schematics Acquired . | . . . Robots Built . | . . . Authchips . | . . . Time . | . . . Total Robot Build Rating . | . . . Part Schematics Acquired . | . . . Parts Built . | . . . Authchips . | . . . Time . | . . . Total Part Build Rating . | . . . Parts Repaired 3 | . 3 . Time 78 | . 78 . Parts Recycled . | . . . Recycled Matter . | . . . Retrieved Matter . | . . . Retrieved Components . | . . . Parts Scanalyzed . | . . . Part Schematics Acquired . | . . . Parts Damaged . | . . . Bothacking | -11 -10 -10 ------------ Run | Jun Mat Min Used RIF Installer . | . . . Robots Hacked . | . . . Non-combat . | . . . Combat . | . . . Robot Hacks Applied . | . . . Relay Couplers Released . | . . . Fabnet Peak Effective % . | . . . Robots Rewired . | . . . Allies Hacked . | . . . Hacks Repelled . | . . . Allies | -11 -10 -10 -------- Run | Jun Mat Min Total Allies . | . . . Largest Group . | . . . Highest-Rated Group . | . . . Highest-Rated Ally . | . . . Total Orders . | . . . Ally Attacks . | . . . Total Damage . | . . . Kills . | . . . Allies Corrupted . | . . . Allies Melted . | . . . Intel | -11 -10 -10 ------- Run | Jun Mat Min Robot Analysis Total 5 | . 5 . Derelict Logs Recovered . | . . . Drone Launches . | . . . Drone Recoveries . | . . . Exploration | -11 -10 -10 ------------- Run | Jun Mat Min Turns Passed 1932 | 90 1563 279 Spaces Moved 907 | 53 784 70 Core 15 | 4 . 11 Treads 878 | 49 784 45 Legs . | . . . Wheels 14 | . . 14 Hover . | . . . Flight . | . . . Fastest Speed 50 | 50 160 80 Average Speed 159 | 151 160 160 Slowest Speed 250 | 160 160 250 Overloaded Moves . | . . . Propulsion Burnouts . | . . . Robots Hopped . | . . . Cave-ins Triggered . | . . . Exploration Rate (%) 37 | 5 96 11 Regions Visited 2 Branch Regions 1 Pre-discovered Areas 2 | . 2 . Known Exits Taken . | . . . Unknown Exits Taken 2 | 1 1 . Scrap Searched 2 | . . 2 Spaces Dug . | . . . Terrain Destroyed 103 | . 19 84 Melee . | . . . Projectile . | . . . AOE 103 | . 19 84 Terrain Rammed . | . . . Walls Destroyed . | . . . Machines Disabled . | . . . Actions | -11 -10 -10 --------- Run | Jun Mat Min Total 1184 | 60 974 150 Wait 100 | . 99 1 Move 905 | 52 783 70 Hop . | . . . Pick Up 7 | 2 5 . Fast Attach 16 | 5 7 4 Attach 8 | . 1 7 Detach 5 | . 3 2 Swap 6 | . 2 4 Drop 1 | . 1 . Fire 124 | . 62 62 Melee . | . . . Ram . | . . . Kick . | . . . Crush 12 | 1 11 . Escape Stasis . | . . . Rewire . | . . . Trap . | . . . Miscellaneous . | . . . Route ------- -11/Junkyard -10/Materials (discovered 5 exits: [*Mat x3] / [*Min x2]) -10/Mines History --------- Turn | Location | Event 3 | -11/Junkyard | Discovered new exit (range 15) 91 | -11/Junkyard | Entered Materials 304 | -10/Materials | Build established: Mutant 529 | -10/Materials | Discovered new exit (range 5) 588 | -10/Materials | Discovered new exit (range 3) 722 | -10/Materials | Discovered new exit (range 9) 833 | -10/Materials | Discovered new exit (range 13) 1170 | -10/Materials | Repaired Lgt. Cannon 1197 | -10/Materials | Repaired Lgt. Treads 1225 | -10/Materials | Repaired Lgt. Treads 1294 | -10/Materials | Discovered new exit (range 11) 1654 | -10/Materials | Entered Mines 1701 | -10/Mines | Assembled infested the area 1706 | -10/Mines | Assisted by a Guerilla fighting off Assembled 1785 | -10/Mines | Destroyed 7 combat bots 1807 | -10/Mines | Core integrity fell below 50% 1848 | -10/Mines | Lost 4 parts (1p2n1u) 1862 | -10/Mines | Core integrity fell below 20% 1927 | -10/Mines | Lost 6 parts (1n5w) 1933 | -10/Mines | Destroyed by as-19197 with Assembled Blade Last Messages --------------- 01892_ U-05 Engineer builds a Wall. 01894_ The unstable cave ceiling collapses. 01895_ U-05 Engineer lays Concrete. 01896_ The unstable cave ceiling collapses. 01896_ Destroyed Asb. Hover Unit. 01896_ as-01342 destroyed. 01896_ Rocket Launcher destroyed. 01896_ Destroyed Rocket Launcher. 01896_ U-05 Engineer destroyed. 01899_ The unstable cave ceiling collapses. 01910_ Searching scrap... 01910_ Found Lrg. Storage Unit. 01910_ Found Signal Interpreter. 01910_ Found Mining Laser. 01910_ Found Heat Sink. 01910_ Found 20 Matter. 01911_ Acquired 20 matter. 01923_ Acquired Wheel. 01925_ Acquired 25 matter. 01930_ Acquired Wheel. Map ----- +----------------------------------------------------+ | ?????????????????????##########???????????? | | ?????????????????????# [%% #???????????? | | ?????????????????????# ! "" #???????????? | | ?????????????????????# """ #########???? | | ?????????????????????# """ ## #???? | | ?????????????????????# """ ##=""" #???? | | ?????????????????????# ## """ #???? | | ?????????????????????#######|!## """ #???? | | ???????????????????????????#%# # = #???? | | ???????????????????????????# ##= ##??? | | ???????????????????????????# ## ##?? | | ???????????????????????????# #?? | | ???????????????????????????#### ##??? | | ??????????????????????????????# # # #??? | | ??????????????????????????????# # ####?? | | ??????????????????????????????# # #?? | | ?????????????????????????????## ####?? | | ?????????????????????????????# #???? | | ?????????????????????????????# #???? | | ???????????????????????????### # #???? | | ???????????????????????????# !| #????? | | ????????????????????????####!!# # #???? | | ????????????????????????# # #???? | | ????????????????????????#t#### ! ##???? | | ????????????????????????# #??## #%* #????? | | ????????????????????????#@#???#### #???? | | ????????????????????????#a#?????? #???? | | ????????????????????????# #?????? ##???? | | ????????????????????????#$#?????? ##????? | | ???????????????????????? #?????? ##?????? | | ????????????????????????###?????? ##??????? | | ????????????????????????????????? ????????? | | ????????????????????????????????? ????????? | | ????????????????????????????????? ????????? | | ????????????????????????????????? ????????? | | ????????????????????????????????? ????????? | | ??????????????????????????????????????????? | | ??????????????????????????????????????????? | | ??????????????????????????????????????????? | | ??????????????????????????????????????????? | | ??????????????????????????????????????????? | | ??????????????????????????????????????????? | | ??????????????????????????????????????????? | | ??????????????????????????????????????????? | | ??????????????????????????????????????????? | | ??????????????????????????????????????????? | | ??????????????????????????????????????????? | | ??????????????????????????????????????????? | | ??????????????????????????????????????????? | | ??????????????????????????????????????????? | +----------------------------------------------------+ Best States ------------- Heat Dissipation 39 Energy Generation 14 Energy Capacity 280 Matter Stores 300 Matter Capacity 300 Sight Range 16 Terrain Scan Density 10 Propulsion Shielding 33 Evasion (%) 41 Recoil Reduction 2 Item Schematics ----------------- None Robot Schematics ------------------ None Fabricated ------------ Nothing Alien Tech Used ----------------- None Achievements -------------- None Challenges ------------ None Game ------ Seed DrainedTransmissionRipper Manual? 0 Play Time 00:11:15 Cumulative 97.2 hours Start 2024.01.12 @ 14:16:48 End 2024.01.12 @ 14:25:42 Sessions 1 Manual Loads 0 Difficulty Rogue Special Mode None Game No. 117 Rogue 117 Adventurer 0 Explorer 0 Win Type - Total 1 Types 1/0/0/0/0/0/0/0/0 Lore% 49 Gallery% 56 Achievement% 48 Wizard Run 0 Options --------- ASCII 0 Keyboard 1 Movement Numpad Keybinds 0 Fullscreen 2 Font 18/SmallcapsGlow Map View 76x50 Tactical HUD 1 Map Filters NONE Filters NONE Steam 1 RUN: 20080693-aaa8-496c-8247-e6b084e59da7